{"text_format":"3","workbook":"xlsx","n_sheets":4,"sheets":["Mốc","Lộ trình","Giới thiệu","Dữ liệu biểu đồ"],"not_rendered":{"charts":1,"defined_names":2},"read":"whole","date_system":"1900"}

{"sheet":"Mốc","index":0,"n_rows":27,"n_cols":5,"rows_kept":27}
["Tạo Lộ trình bằng cách nhập các mốc và hoạt động quan trọng vào trang tính này.\nTiêu đề của trang tính này nằm trong ô C1. \nThông tin về cách sử dụng trang tính này, bao gồm hướng dẫn cho bộ đọc màn hình nằm trong trang tính Giới thiệu.\nTiếp tục dẫn hướng xuống cột A để biết thêm hướng dẫn.",null,"Mốc"]
["Đầu đề bảng nằm trong các ô C2 đến E2. Sử dụng tùy chọn Sắp xếp & Lọc để sắp xếp và tìm các mục nhập cụ thể.\nNhập Mốc kèm theo ngày và đặt vị trí để lập biểu đồ mốc trong bảng bắt đầu từ ô C3.\nCột B đã bị ẩn. Biểu đồ được tạo từ dữ liệu này sử dụng thanh cuộn để xem các đoạn trên đường thời gian. Cột B sẽ giúp xác định loại Mốc để lập biểu đồ khi thanh cuộn tăng dần. \nCảnh báo: Việc xóa hoặc sửa đổi nội dung cột B có thể làm mất tính toàn vẹn của biểu đồ tích hợp sẵn trong sổ làm việc này.","Số","Vị trí","Ngày","Mốc"]
["Nhập Vị trí để lập biểu đồ ngày và mốc trong ô C1. Nhập một số dương trong khoảng từ 1 đến 3 để lập biểu đồ mốc ở bên trên đường thời gian. Nhập một số âm trong khoảng từ 1 đến 3 để lập biểu đồ mốc ở bên dưới đường thời gian.\nNhập Ngày và Mốc hoặc hoạt động vào cột D và E vào trong bảng.\nLặp lại mẫu này cho từng hàng mới trong bảng bên phải.\nDữ liệu mẫu được cung cấp trong các hàng từ 3 đến 26. Sửa đổi hoặc xóa nội dung mẫu để tạo lộ trình của riêng bạn.\nTiếp tục sang ô A27 để biết hướng dẫn tiếp theo.",{"$f":"ROW($A1)","v":1},1,{"$f":"TODAY()","v":"2018-06-29"},"Bắt đầu"]
[null,{"$f":"ROW($A2)","v":2},-2,{"$f":"D3+10","v":"2018-07-09"},"Phân tích sự cố\nhoạt động 1"]
[null,3,1,{"$f":"D4+20","v":"2018-07-29"},"Phát triển tình huống của doanh nghiệp\nhoạt động 1\nhoạt động 2"]
[null,4,-1,{"$f":"D5+30","v":"2018-08-28"},"Xem lại bản trình bày"]
[null,5,{"v":-0.5,"d":"-1"},{"$f":"D6+40","v":"2018-10-07"},"Khởi động về mặt hành chính\nhoạt động 1\nhoạt động 2"]
[null,6,2,{"$f":"D7+50","v":"2018-11-26"},"Điều chỉnh về mặt hành chính\nhoạt động 1\nhoạt động 2\nhoạt động 3"]
[null,7,{"v":0.5,"d":"1"},{"$f":"D8+60","v":"2019-01-25"},"Hoạt động mua vào của bên liên quan"]
[null,8,-1,{"$f":"D9+70","v":"2019-04-05"},"Lựa chọn tài nguyên"]
[null,9,{"v":0.5,"d":"1"},{"$f":"D10+80","v":"2019-06-24"},"Tạo nhóm\nhoạt động 1 "]
[null,10,-2,{"$f":"D11+90","v":"2019-09-22"},"Hoạt động bắt đầu của nhóm\nhoạt động 1 \nhoạt động 2\nhoạt động 3\nhoạt động 4"]
[null,11,3,{"$f":"D12+100","v":"2019-12-31"},"Bắt đầu thu thập dữ liệu"]
[null,12,-1,{"$f":"D13+90","v":"2020-03-30"},"Phân tích dữ liệu"]
[null,13,1,{"$f":"D14+80","v":"2020-06-18"},"Thiết kế"]
[null,14,1,{"$f":"D15+70","v":"2020-08-27"},"Chứng minh khái niệm"]
[null,15,-3,{"$f":"D16+60","v":"2020-10-26"},"Thử nghiệm & Phân tích"]
[null,16,-2,{"$f":"D17+50","v":"2020-12-15"},"Thiết kế lại"]
[null,17,2,{"$f":"D18+40","v":"2021-01-24"},"Phát triển lại"]
[null,18,-1,{"$f":"D19+30","v":"2021-02-23"},"Thử nghiệm & Phân tích"]
[null,19,1,{"$f":"D20+20","v":"2021-03-15"},"Thiết kế lại"]
[null,20,-3,{"$f":"D21+10","v":"2021-03-25"},"Phát triển lại"]
[null,21,2,{"$f":"D22+20","v":"2021-04-14"},"Bản thử nghiệm cuối cùng"]
[null,22,1,{"$f":"D23+30","v":"2021-05-14"},"Bản thử nghiệm beta"]
[null,23,-3,{"$f":"D24+40","v":"2021-06-23"},"Xem lại"]
[null,24,-2,{"$f":"D25+50","v":"2021-08-12"},"Phát hành cho tiếp thị"]
["Để thêm nhiều hàng vào bảng Mốc lộ trình, chỉ cần chèn một hàng mới bên trên dòng này.\nKhông có thêm hướng dẫn nào trong trang tính này.",null,"Để thêm nhiều mốc, hãy chèn các hàng mới bên trên dòng này."]

{"sheet":"Lộ trình","index":1,"n_rows":3,"n_cols":4,"rows_kept":3}
["Biểu đồ hiển thị các mốc từ trang tính Mốc nằm trong trang tính này. \nNăm được biểu thị trong các ô B2, C2 và D2 và được áp dụng kiểu Đầu đề 3.\nMỗi lần sẽ có 10 mốc được lập biểu đồ. \nSử dụng thanh cuộn trong các ô từ B4 đến D4 để dẫn hướng qua lộ trình.\nNăm trên đường thời gian nằm trong các ô B3 đến D3.\nKhông có thêm hướng dẫn nào trong trang tính này."]
[]
[null,{"$f":"'Dữ liệu biểu đồ'!B20","v":2018},{"$f":"'Dữ liệu biểu đồ'!B21","v":""},{"$f":"'Dữ liệu biểu đồ'!B22","v":2019}]

{"sheet":"Giới thiệu","index":2,"n_rows":5,"n_cols":1,"rows_kept":5}
["Giới thiệu về sổ làm việc này"]
["Hướng dẫn dành cho bộ đọc màn hình"]
["Sổ làm việc này có 4 trang tính. \n\nMốc\nLộ trình\nGiới thiệu\nDữ liệu biểu đồ (ẩn)\n\nHướng dẫn cho từng trang tính nằm trong cột A, bắt đầu ở ô A1 của từng trang tính. Các hướng dẫn này được viết bằng văn bản ẩn. Mỗi bước sẽ hướng dẫn bạn qua thông tin trong hàng đó. Mỗi bước tiếp theo sẽ tiếp tục trong ô A2, A3, v.v., trừ khi được chỉ dẫn rõ ràng. Ví dụ: văn bản hướng dẫn có thể cho biết \"tiếp tục sang ô A6\" để thực hiện bước tiếp theo. \n\nVăn bản ẩn sẽ không được in ra.\n\nĐể loại bỏ các hướng dẫn này khỏi bất kỳ trang tính nào, chỉ cần xóa cột A.\n"]
["Lộ trình này sử dụng các vị trí để lập biểu đồ mốc và hoạt động. Vị trí có thể được dùng để thêm trọng số vào mốc hoặc hoạt động. Chỉ cần điều chỉnh các giá trị theo tùy chọn trọng số của bạn. Ví dụ: mốc/hoạt động 3 có thể có trọng số nhiều hơn mốc/hoạt động 2. Để biểu thị điều này trên biểu đồ, chỉ cần tạo giá trị Vị trí cho mốc/hoạt động 3 cao hơn so với mốc/hoạt động 2.  \n"]
["Đây là hướng dẫn cuối cùng trong trang tính này."]

{"sheet":"Dữ liệu biểu đồ","index":3,"n_rows":26,"n_cols":4,"rows_kept":26,"hidden":true}
["Dữ liệu để tạo biểu đồ động nằm trong trang tính này. Không xóa trang tính này!\nXóa trang tính này có thể gây hại cho chức năng động của sổ làm việc.","Không xóa trang tính này!"]
["Tiêu đề của bảng nằm trong ô B2.","Nội dung Biểu đồ động"]
["Đầu đề của bảng nằm trong các ô B3 đến D3. \nBảng này sẽ được cập nhật tự động dựa trên nội dung nhập vào trang tính Mốc.\nCảnh báo: Việc sửa đổi hoặc xóa nội dung trong bảng này có thể gây hại cho chức năng cập nhật động của biểu đồ Lộ trình trong trang tính Lộ trình.\nTiếp tục sang ô A15 để biết hướng dẫn tiếp theo.","Ngày","Sự kiện","Vị trí"]
[null,{"$f":"IFERROR(IF(LEN(Mốc!D3)=0,\"\",INDEX(Các_mốc_trên_lộ_trình[],Mốc!$B3+$B$17,3)),\"\")","v":"2018-06-29"},{"$f":"IFERROR(IF(LEN(Mốc!E3)=0,\"\",INDEX(Các_mốc_trên_lộ_trình[],Mốc!$B3+$B$17,4)),\"\")","v":"Bắt đầu"},{"$f":"IFERROR(INDEX(Các_mốc_trên_lộ_trình[],Mốc!$B3+$B$17,2),\"\")","v":1}]
[null,{"$f":"IFERROR(IF(LEN(Mốc!D4)=0,\"\",INDEX(Các_mốc_trên_lộ_trình[],Mốc!$B4+$B$17,3)),\"\")","v":"2018-07-09"},{"$f":"IFERROR(IF(LEN(Mốc!E4)=0,\"\",INDEX(Các_mốc_trên_lộ_trình[],Mốc!$B4+$B$17,4)),\"\")","v":"Phân tích sự cố\nhoạt động 1"},{"$f":"IFERROR(INDEX(Các_mốc_trên_lộ_trình[],Mốc!$B4+$B$17,2),\"\")","v":-2}]
[null,{"$f":"IFERROR(IF(LEN(Mốc!D5)=0,\"\",INDEX(Các_mốc_trên_lộ_trình[],Mốc!$B5+$B$17,3)),\"\")","v":"2018-07-29"},{"$f":"IFERROR(IF(LEN(Mốc!E5)=0,\"\",INDEX(Các_mốc_trên_lộ_trình[],Mốc!$B5+$B$17,4)),\"\")","v":"Phát triển tình huống của doanh nghiệp\nhoạt động 1\nhoạt động 2"},{"$f":"IFERROR(INDEX(Các_mốc_trên_lộ_trình[],Mốc!$B5+$B$17,2),\"\")","v":1}]
[null,{"$f":"IFERROR(IF(LEN(Mốc!D6)=0,\"\",INDEX(Các_mốc_trên_lộ_trình[],Mốc!$B6+$B$17,3)),\"\")","v":"2018-08-28"},{"$f":"IFERROR(IF(LEN(Mốc!E6)=0,\"\",INDEX(Các_mốc_trên_lộ_trình[],Mốc!$B6+$B$17,4)),\"\")","v":"Xem lại bản trình bày"},{"$f":"IFERROR(INDEX(Các_mốc_trên_lộ_trình[],Mốc!$B6+$B$17,2),\"\")","v":-1}]
[null,{"$f":"IFERROR(IF(LEN(Mốc!D7)=0,\"\",INDEX(Các_mốc_trên_lộ_trình[],Mốc!$B7+$B$17,3)),\"\")","v":"2018-10-07"},{"$f":"IFERROR(IF(LEN(Mốc!E7)=0,\"\",INDEX(Các_mốc_trên_lộ_trình[],Mốc!$B7+$B$17,4)),\"\")","v":"Khởi động về mặt hành chính\nhoạt động 1\nhoạt động 2"},{"$f":"IFERROR(INDEX(Các_mốc_trên_lộ_trình[],Mốc!$B7+$B$17,2),\"\")","v":-0.5}]
[null,{"$f":"IFERROR(IF(LEN(Mốc!D8)=0,\"\",INDEX(Các_mốc_trên_lộ_trình[],Mốc!$B8+$B$17,3)),\"\")","v":"2018-11-26"},{"$f":"IFERROR(IF(LEN(Mốc!E8)=0,\"\",INDEX(Các_mốc_trên_lộ_trình[],Mốc!$B8+$B$17,4)),\"\")","v":"Điều chỉnh về mặt hành chính\nhoạt động 1\nhoạt động 2\nhoạt động 3"},{"$f":"IFERROR(INDEX(Các_mốc_trên_lộ_trình[],Mốc!$B8+$B$17,2),\"\")","v":2}]
[null,{"$f":"IFERROR(IF(LEN(Mốc!D9)=0,\"\",INDEX(Các_mốc_trên_lộ_trình[],Mốc!$B9+$B$17,3)),\"\")","v":"2019-01-25"},{"$f":"IFERROR(IF(LEN(Mốc!E9)=0,\"\",INDEX(Các_mốc_trên_lộ_trình[],Mốc!$B9+$B$17,4)),\"\")","v":"Hoạt động mua vào của bên liên quan"},{"$f":"IFERROR(INDEX(Các_mốc_trên_lộ_trình[],Mốc!$B9+$B$17,2),\"\")","v":0.5}]
[null,{"$f":"IFERROR(IF(LEN(Mốc!D10)=0,\"\",INDEX(Các_mốc_trên_lộ_trình[],Mốc!$B10+$B$17,3)),\"\")","v":"2019-04-05"},{"$f":"IFERROR(IF(LEN(Mốc!E10)=0,\"\",INDEX(Các_mốc_trên_lộ_trình[],Mốc!$B10+$B$17,4)),\"\")","v":"Lựa chọn tài nguyên"},{"$f":"IFERROR(INDEX(Các_mốc_trên_lộ_trình[],Mốc!$B10+$B$17,2),\"\")","v":-1}]
[null,{"$f":"IFERROR(IF(LEN(Mốc!D11)=0,\"\",INDEX(Các_mốc_trên_lộ_trình[],Mốc!$B11+$B$17,3)),\"\")","v":"2019-06-24"},{"$f":"IFERROR(IF(LEN(Mốc!E11)=0,\"\",INDEX(Các_mốc_trên_lộ_trình[],Mốc!$B11+$B$17,4)),\"\")","v":"Tạo nhóm\nhoạt động 1 "},{"$f":"IFERROR(INDEX(Các_mốc_trên_lộ_trình[],Mốc!$B11+$B$17,2),\"\")","v":0.5}]
[null,{"$f":"IFERROR(IF(LEN(Mốc!D12)=0,\"\",INDEX(Các_mốc_trên_lộ_trình[],Mốc!$B12+$B$17,3)),\"\")","v":"2019-09-22"},{"$f":"IFERROR(IF(LEN(Mốc!E12)=0,\"\",INDEX(Các_mốc_trên_lộ_trình[],Mốc!$B12+$B$17,4)),\"\")","v":"Hoạt động bắt đầu của nhóm\nhoạt động 1 \nhoạt động 2\nhoạt động 3\nhoạt động 4"},{"$f":"IFERROR(INDEX(Các_mốc_trên_lộ_trình[],Mốc!$B12+$B$17,2),\"\")","v":-2}]
[]
["Khả năng cuộn qua lộ trình sẽ được hoàn thành với sự trợ giúp của giá trị gia số. Tiêu đề của khả năng này nằm trong ô B15.\nMột bảng có tiêu đề và một giá trị duy nhất nằm trong các ô B16 và B17.\nTiếp tục sang ô A19 để biết hướng dẫn tiếp theo.","Chức năng cuộn"]
[null,"Gia số hàng"]
[null,0]
[]
["Biểu đồ Lộ trình vẽ các năm cho đường thời gian. Để thực hiện việc này, năm phải được ghi lại từ Danh sách mốc. \nTiêu đề của phần này là \"Năm\" trong ô B19. \nGiá trị năm sẽ được tạo tự động trong các ô C20 đến C22.\nCảnh báo: Việc xóa hoặc sửa đổi các năm này có thể thay đổi độ chính xác của biểu đồ Lộ trình.\nTiếp tục sang ô A24 để biết hướng dẫn tiếp theo.","Năm"]
[null,{"$f":"IFERROR(YEAR(B4),\"\")","v":2018},"<-- năm ở vị trí đầu lộ trình"]
[null,{"$f":"IFERROR(IF(YEAR($B$9)=$B$20,\"\",YEAR($B$9)),\"\")","v":""},"<- năm ở giai đoạn giữa lộ trình, lưu ý, mục này có thể trống nếu năm trùng với vị trí bắt đầu lộ trình"]
[null,{"$f":"IFERROR(IF(YEAR($B$13)=$B$20,\"\",YEAR($B$13)),\"\")","v":2019},"<- năm ở vị trí cuối lộ trình, lưu ý, mục này có thể trống nếu năm trùng với năm nằm ở vị trí bắt đầu lộ trình"]
[]
["Các vạch dấu hình bánh donut trong biểu đồ Lộ trình chứa các ngày từ nội dung biểu đồ động trong trang tính này. Các ngày là Ngày đầu tiên trong ô C24, Ngày giữa trong ô C25 và ngày cuối trong ô C26.\nKhông có thêm hướng dẫn nào trong trang tính này.","Ngày đầu tiên",{"$f":"B4","v":"2018-06-29"}]
[null,"Ngày giữa",{"$f":"B9","v":"2018-11-26"}]
[null,"Ngày cuối",{"$f":"B13","v":"2019-09-22"}]